[Event "2nd Goa GM Open 2019"]
[Site "Goa"]
[Date "2019.06.23"]
[Round "8.14"]
[White "Neelash Saha"]
[Black "Malakhatko, Vadim"]
[Result "1-0"]
[ECO "E00"]
[WhiteElo "2315"]
[BlackElo "2505"]
[Annotator "ChessBase"]
[PlyCount "121"]
[EventDate "2019.06.17"]
[EventType "swiss"]
[EventCountry "IND"]
[SourceTitle "playchess.com"]
[Source "ChessBase"]
[SourceQuality "1"]
[TimeControl "5400+30"]

1. d4 {[%emt 0:00:00]} e6 {[%emt 0:00:00]} 2. c4 {[%emt 0:00:44]} Bb4+ {[%emt 0:00:00]} 3. Bd2 {[%emt 0:00:07]} a5 {[%emt 0:00:00]} 4. Nc3 {[%emt 0:04:32]} Nf6 {[%emt 0:02:14]} 5. Qc2 {[%emt 0:00:22]} d6 {[%emt 0:04:05]} 6. Nf3 {[%emt 0:01:30]} Qe7 {[%emt 0:02:06]} 7. a3 {[%emt 0:01:50]} Bxc3 {[%emt 0:00:06]} 8. Bxc3 {[%emt 0:00:02]} Nbd7 {[%emt 0:00:44]} 9. e3 {[%emt 0:09:33]} a4 {[%emt 0:06:04]} 10. Be2 {[%emt 0:02:14]} b6 {[%emt 0:00:13]} 11. O-O {[%emt 0:01:54]} O-O {[%emt 0:00:18]} 12. Nd2 {[%emt 0:04:36]} Bb7 {[%emt 0:03:30]} 13. e4 {[%emt 0:02:16]} e5 {[%emt 0:00:21]} 14. d5 {[%emt 0:00:04]} Nc5 {[%emt 0:00:17]} 15. Bb4 {[%emt 0:00:04]} Bc8 {[%emt 0:01:36]} 16. Rae1 {[%emt 0:02:12]} h6 {[%emt 0:04:04]} 17. Bd1 {[%emt 0:02:35]} Nh7 {[%emt 0:10:55]} 18. f4 {[%emt 0:01:38]} exf4 {[%emt 0:00:05]} 19. Rxf4 {[%emt 0:00:46]} Bd7 {[%emt 0:03:04]} 20. Rff1 {[%emt 0:03:19]} Rae8 {[%emt 0:01:04]} 21. Qb1 {[%emt 0:00:10]} Ng5 {[%emt 0:04:54]} 22. Bc2 {[%emt 0:01:54]} f6 {[%emt 0:00:07]} 23. Qd1 {[%emt 0:04:46]} Ra8 {[%emt 0:01:52]} 24. Nf3 {[%emt 0:01:47]} Nf7 {[%emt 0:02:27]} 25. e5 {[%emt 0:14:18]} Nxe5 {[%emt 0:03:30]} 26. Nh4 {[%emt 0:00:34]} Qf7 {[%emt 0:10:00]} 27. Qd4 {[%emt 0:02:25]} g6 {[%emt 0:13:36]} 28. Re3 {[%emt 0:02:06]} f5 {[%emt 0:05:23]} 29. Bc3 {[%emt 0:00:37]} Kh7 {[%emt 0:08:54]} 30. Rh3 {[%emt 0:04:28]} Rae8 {[%emt 0:05:00]} 31. Qd2 {[%emt 0:04:09]} Ng4 {[%emt 0:01:38]} 32. Nf3 {[%emt 0:02:37]} Qe7 {[%emt 0:02:36]} 33. Re1 {[%emt 0:00:59]} Qd8 {[%emt 0:00:03]} 34. Rxe8 {[%emt 0:05:34]} Qxe8 {[%emt 0:00:14]} 35. Qd4 {[%emt 0:01:34]} Rf6 {[%emt 0:03:17]} 36. Rh4 {[%emt 0:04:08]} Qe7 {[%emt 0:01:34]} 37. h3 {[%emt 0:03:40]} Ne5 {[%emt 0:00:04]} 38. Ng5+ {[%emt 0:00:09]} Kg8 {[%emt 0:00:42]} 39. Rxh6 {[%emt 0:00:09]} Ne4 {[%emt 0:01:11]} 40. Nxe4 {[%emt 0:03:59]} fxe4 {[%emt 0:00:05]} 41. Qxe4 {[%emt 0:00:04]} Qf8 {[%emt 0:01:41]} 42. Rxg6+ {[%emt 0:03:20]} Rxg6 {[%emt 0:00:42]} 43. Bxe5 {[%emt 0:00:06]} Rh6 {[%emt 0:00:06]} 44. Bc3 {[%emt 0:00:34]} Qf7 {[%emt 0:00:49]} 45. Qe3 {[%emt 0:00:34]} Qf8 {[%emt 0:00:42]} 46. Qg5+ {[%emt 0:00:35]} Kf7 {[%emt 0:00:02]} 47. Bd2 {[%emt 0:00:13]} Rf6 {[%emt 0:00:07]} 48. Qh5+ {[%emt 0:00:04]} Ke7 {[%emt 0:00:21]} 49. Bg5 {[%emt 0:00:04]} Qg7 {[%emt 0:00:05]} 50. Qh4 {[%emt 0:00:42]} Kf7 {[%emt 0:00:21]} 51. Bxf6 {[%emt 0:01:24]} Qxf6 {[%emt 0:00:04]} 52. Qxf6+ {[%emt 0:00:04]} Kxf6 {[%emt 0:00:06]} 53. Kf2 {[%emt 0:00:02]} Ke5 {[%emt 0:00:05]} 54. Ke3 {[%emt 0:00:03]} b5 {[%emt 0:00:05]} 55. cxb5 {[%emt 0:00:08]} Bxb5 {[%emt 0:00:04]} 56. Be4 {[%emt 0:00:03]} Bc4 {[%emt 0:01:09]} 57. g4 {[%emt 0:00:46]} Bxd5 {[%emt 0:00:04]} 58. Bxd5 {[%emt 0:00:03]} Kxd5 {[%emt 0:00:06]} 59. h4 {[%emt 0:00:31]} Ke5 {[%emt 0:00:10]} 60. h5 {[%emt 0:00:03]} d5 {[%emt 0:01:02]} 61. h6 {[%emt 0:00:12]} 1-0

[Event "2nd Goa GM Open 2019"]
[Site "Goa"]
[Date "2019.06.23"]
[Round "8.16"]
[White "Matta, Vinay Kumar"]
[Black "Gagare, Shardul"]
[Result "1/2-1/2"]
[ECO "C24"]
[WhiteElo "2181"]
[BlackElo "2482"]
[Annotator "ChessBase"]
[PlyCount "140"]
[EventDate "2019.06.17"]
[EventType "swiss"]
[EventCountry "IND"]
[SourceTitle "playchess.com"]
[Source "ChessBase"]
[SourceQuality "1"]
[TimeControl "5400+30"]

1. e4 {[%emt 0:09:50]} e5 {[%emt 0:00:00]} 2. Bc4 {[%emt 0:00:12]} Nf6 {[%emt 0:00:09]} 3. d3 {[%emt 0:00:05]} Nc6 {[%emt 0:00:19]} 4. Nc3 {[%emt 0:00:06]} Bc5 {[%emt 0:00:21]} 5. Bg5 {[%emt 0:03:18]} h6 {[%emt 0:01:29]} 6. Bh4 {[%emt 0:03:05]} Be7 {[%emt 0:00:29]} 7. Nf3 {[%emt 0:12:57]} d6 {[%emt 0:00:36]} 8. h3 {[%emt 0:04:38]} Na5 {[%emt 0:01:50]} 9. Bb5+ {[%emt 0:05:56]} c6 {[%emt 0:00:09]} 10. Ba4 {[%emt 0:00:25]} b5 {[%emt 0:00:17]} 11. Bb3 {[%emt 0:00:09]} O-O {[%emt 0:00:31]} 12. O-O {[%emt 0:01:05]} Qc7 {[%emt 0:09:55]} 13. Re1 {[%emt 0:02:32]} Rb8 {[%emt 0:06:04]} 14. Qd2 {[%emt 0:02:17]} Nxb3 {[%emt 0:03:34]} 15. axb3 {[%emt 0:00:23]} b4 {[%emt 0:01:00]} 16. Nd1 {[%emt 0:01:44]} Nh5 {[%emt 0:03:33]} 17. Ne3 {[%emt 0:09:56]} Re8 {[%emt 0:14:47]} 18. Ra4 {[%emt 0:01:09]} Bxh4 {[%emt 0:09:01]} 19. Nxh4 {[%emt 0:00:31]} a5 {[%emt 0:03:12]} 20. Rea1 {[%emt 0:00:55]} Rb5 {[%emt 0:00:19]} 21. Nhf5 {[%emt 0:04:21]} d5 {[%emt 0:05:31]} 22. Qd1 {[%emt 0:02:20]} Nf6 {[%emt 0:12:46]} 23. Qf3 {[%emt 0:01:21]} Bxf5 {[%emt 0:05:42]} 24. Nxf5 {[%emt 0:01:08]} Re6 {[%emt 0:04:13]} 25. Qg3 {[%emt 0:06:37]} Ne8 {[%emt 0:00:24]} 26. Re1 {[%emt 0:04:27]} Kh7 {[%emt 0:03:12]} 27. Qh4 {[%emt 0:02:32]} Nd6 {[%emt 0:01:37]} 28. Nxd6 {[%emt 0:01:03]} Qxd6 {[%emt 0:00:19]} 29. Qh5 {[%emt 0:01:19]} g6 {[%emt 0:01:25]} 30. Qd1 {[%emt 0:00:35]} dxe4 {[%emt 0:03:11]} 31. dxe4 {[%emt 0:00:45]} Qd4 {[%emt 0:04:42]} 32. c4 {[%emt 0:00:20]} Rb7 {[%emt 0:01:17]} 33. Rxa5 {[%emt 0:01:56]} Qxb2 {[%emt 0:01:12]} 34. Ra8 {[%emt 0:03:32]} Qd4 {[%emt 0:01:51]} 35. Qxd4 {[%emt 0:02:51]} exd4 {[%emt 0:00:06]} 36. Rd8 {[%emt 0:00:09]} c5 {[%emt 0:00:54]} 37. Rc8 {[%emt 0:00:44]} Ra7 {[%emt 0:01:02]} 38. Rxc5 {[%emt 0:00:10]} Ra3 {[%emt 0:00:15]} 39. Rd5 {[%emt 0:00:27]} Rxb3 {[%emt 0:00:15]} 40. Rxd4 {[%emt 0:00:09]} Rc6 {[%emt 0:01:23]} 41. Rd7 {[%emt 0:01:32]} Kg8 {[%emt 0:00:06]} 42. e5 {[%emt 0:01:08]} Rc3 {[%emt 0:00:25]} 43. Ra1 {[%emt 0:00:29]} R3xc4 {[%emt 0:01:04]} 44. Ra8+ {[%emt 0:01:34]} Rc8 {[%emt 0:00:16]} 45. Raa7 {[%emt 0:00:30]} Rf4 {[%emt 0:01:01]} 46. g3 {[%emt 0:00:52]} Rf5 47. f4 {[%emt 0:01:30]} b3 {[%emt 0:00:54]} 48. Rab7 {[%emt 0:00:41]} g5 {[%emt 0:00:23]} 49. Rd4 {[%emt 0:00:54]} gxf4 {[%emt 0:00:22]} 50. gxf4 {[%emt 0:00:06]} Re8 {[%emt 0:01:02]} 51. Rxb3 {[%emt 0:00:14]} f6 {[%emt 0:00:05]} 52. exf6 {[%emt 0:03:49]} Rxf6 {[%emt 0:00:05]} 53. Kf2 {[%emt 0:00:18]} Kf7 {[%emt 0:00:19]} 54. Rb7+ {[%emt 0:00:21]} Re7 {[%emt 0:00:12]} 55. Rxe7+ {[%emt 0:00:07]} Kxe7 {[%emt 0:00:02]} 56. Kf3 {[%emt 0:00:07]} Ra6 {[%emt 0:00:16]} 57. Kg4 {[%emt 0:00:37]} Ra5 {[%emt 0:01:33]} 58. Rb4 {[%emt 0:00:25]} h5+ {[%emt 0:00:30]} 59. Kf3 {[%emt 0:02:24]} Ra3+ {[%emt 0:00:25]} 60. Ke4 {[%emt 0:00:17]} Rxh3 {[%emt 0:00:33]} 61. Rb7+ {[%emt 0:00:30]} Kf6 {[%emt 0:00:08]} 62. Rb6+ {[%emt 0:00:08]} Kf7 {[%emt 0:00:22]} 63. Kf5 {[%emt 0:00:18]} Ra3 {[%emt 0:00:14]} 64. Rb7+ {[%emt 0:00:10]} Kf8 {[%emt 0:00:10]} 65. Kg5 {[%emt 0:00:23]} h4 {[%emt 0:00:30]} 66. Kxh4 {[%emt 0:01:03]} Ra5 {[%emt 0:00:18]} 67. Kg4 {[%emt 0:00:06]} Rc5 {[%emt 0:00:21]} 68. f5 {[%emt 0:00:09]} Rc6 {[%emt 0:00:22]} 69. Kg5 {[%emt 0:00:10]} Ra6 {[%emt 0:00:11]} 70. Rc7 {[%emt 0:00:34]} Rb6 {[%emt 0:00:05]} 1/2-1/2

[Event "2nd Goa GM Open 2019"]
[Site "Goa"]
[Date "2019.06.23"]
[Round "8.17"]
[White "Vasquez Schroeder, Rodrigo"]
[Black "Priyanka, Kumari"]
[Result "1-0"]
[ECO "E62"]
[WhiteElo "2476"]
[BlackElo "1991"]
[Annotator "ChessBase"]
[PlyCount "165"]
[EventDate "2019.06.17"]
[EventType "swiss"]
[EventCountry "IND"]
[SourceTitle "playchess.com"]
[Source "ChessBase"]
[SourceQuality "1"]
[TimeControl "5400+30"]

1. d4 {[%emt 0:00:00]} Nf6 {[%emt 0:00:31]} 2. c4 {[%emt 0:00:00]} g6 {[%emt 0:00:07]} 3. g3 {[%emt 0:00:00]} Bg7 {[%emt 0:00:10]} 4. Bg2 {[%emt 0:00:00]} d6 {[%emt 0:00:17]} 5. Nc3 {[%emt 0:00:20]} O-O {[%emt 0:00:16]} 6. Nf3 {[%emt 0:00:06]} Nc6 {[%emt 0:01:12]} 7. O-O {[%emt 0:00:08]} Bg4 {[%emt 0:01:32]} 8. d5 {[%emt 0:00:10]} Na5 {[%emt 0:01:10]} 9. Nd2 {[%emt 0:00:12]} c5 {[%emt 0:00:42]} 10. h3 {[%emt 0:00:52]} Bd7 {[%emt 0:00:37]} 11. Qc2 {[%emt 0:00:11]} a6 {[%emt 0:00:23]} 12. a4 {[%emt 0:01:05]} b5 {[%emt 0:07:40]} 13. axb5 {[%emt 0:01:37]} axb5 {[%emt 0:00:08]} 14. cxb5 {[%emt 0:01:38]} Qb6 {[%emt 0:02:59]} 15. Qa4 {[%emt 0:12:44]} Rfb8 {[%emt 0:08:03]} 16. b4 {[%emt 0:01:36]} cxb4 {[%emt 0:01:29]} 17. Qxb4 {[%emt 0:00:06]} Ne8 {[%emt 0:06:59]} 18. Nb3 {[%emt 0:30:34]} Bxc3 {[%emt 0:18:02]} 19. Qxc3 {[%emt 0:00:05]} Nxb3 {[%emt 0:01:28]} 20. Rxa8 {[%emt 0:07:13]} Nxc1 {[%emt 0:10:48]} 21. Rxb8 {[%emt 0:00:31]} Nxe2+ {[%emt 0:00:10]} 22. Kh2 {[%emt 0:00:03]} Qxb8 {[%emt 0:00:20]} 23. Qe3 {[%emt 0:00:07]} Bxb5 {[%emt 0:01:46]} 24. Rb1 {[%emt 0:00:41]} Qb7 {[%emt 0:11:16]} 25. Qxe2 {[%emt 0:04:04]} Bxe2 {[%emt 0:00:15]} 26. Rxb7 {[%emt 0:00:05]} Kf8 {[%emt 0:00:24]} 27. Rb8 {[%emt 0:02:01]} f5 {[%emt 0:00:46]} 28. Rb2 {[%emt 0:02:49]} Bc4 {[%emt 0:02:41]} 29. Rb4 {[%emt 0:00:07]} Be2 {[%emt 0:01:52]} 30. f4 {[%emt 0:02:09]} Nf6 {[%emt 0:01:06]} 31. Rd4 {[%emt 0:00:05]} Nd7 {[%emt 0:08:21]} 32. Kg1 {[%emt 0:01:45]} Nc5 {[%emt 0:00:46]} 33. Kf2 {[%emt 0:00:07]} Bd3 {[%emt 0:00:18]} 34. Ke3 {[%emt 0:00:07]} Bb1 {[%emt 0:00:34]} 35. g4 {[%emt 0:00:58]} fxg4 {[%emt 0:00:26]} 36. hxg4 {[%emt 0:00:05]} h5 {[%emt 0:02:04]} 37. Rd1 {[%emt 0:00:27]} Bc2 {[%emt 0:01:28]} 38. Rc1 {[%emt 0:00:11]} Ba4 {[%emt 0:00:10]} 39. gxh5 {[%emt 0:01:09]} gxh5 {[%emt 0:00:06]} 40. Bf3 {[%emt 0:00:20]} Be8 {[%emt 0:00:33]} 41. Rh1 {[%emt 0:00:14]} Bf7 {[%emt 0:00:15]} 42. Kd4 {[%emt 0:01:48]} Nb3+ {[%emt 0:02:27]} 43. Kd3 {[%emt 0:00:15]} Kg7 {[%emt 0:01:05]} 44. Ke3 {[%emt 0:02:40]} Nc5 45. Ra1 {[%emt 0:00:11]} Kg6 {[%emt 0:02:09]} 46. Rg1+ {[%emt 0:02:09]} Kh6 {[%emt 0:00:13]} 47. Kd4 {[%emt 0:00:27]} e6 {[%emt 0:04:02]} 48. dxe6 {[%emt 0:00:32]} Nxe6+ {[%emt 0:00:57]} 49. Ke3 {[%emt 0:00:07]} Ng7 {[%emt 0:00:43]} 50. Be4 {[%emt 0:01:31]} d5 {[%emt 0:00:22]} 51. Bd3 {[%emt 0:00:07]} h4 {[%emt 0:00:46]} 52. Rg4 {[%emt 0:00:54]} Nh5 {[%emt 0:02:30]} 53. Rxh4 {[%emt 0:00:38]} Kg7 {[%emt 0:00:06]} 54. Be2 {[%emt 0:01:08]} Nf6 {[%emt 0:00:14]} 55. Kd4 {[%emt 0:00:42]} Kf8 {[%emt 0:00:48]} 56. Bd3 {[%emt 0:00:18]} Ke7 {[%emt 0:00:24]} 57. Bf5 {[%emt 0:00:12]} Ne8 {[%emt 0:00:32]} 58. Ke5 {[%emt 0:00:20]} Nd6 {[%emt 0:00:21]} 59. Bd3 {[%emt 0:00:27]} Bg8 {[%emt 0:00:58]} 60. Rh1 {[%emt 0:00:25]} Be6 {[%emt 0:00:38]} 61. Ra1 {[%emt 0:00:43]} Nf7+ {[%emt 0:00:12]} 62. Kd4 {[%emt 0:00:55]} Kf6 {[%emt 0:00:15]} 63. Ra6 {[%emt 0:00:07]} Nh6 {[%emt 0:00:13]} 64. Bb5 {[%emt 0:02:08]} Nf5+ {[%emt 0:00:35]} 65. Kc5 {[%emt 0:00:24]} Ke7 {[%emt 0:00:06]} 66. Bc6 {[%emt 0:00:48]} Ne3 {[%emt 0:00:27]} 67. Kd4 {[%emt 0:00:27]} Ng4 {[%emt 0:01:20]} 68. Bxd5 {[%emt 0:00:30]} Bc8 {[%emt 0:00:22]} 69. Ra7+ {[%emt 0:00:52]} Kf6 {[%emt 0:00:25]} 70. Rf7+ {[%emt 0:00:50]} Kg6 {[%emt 0:00:04]} 71. Rc7 {[%emt 0:00:31]} Bf5 {[%emt 0:00:36]} 72. Rc6+ {[%emt 0:00:54]} Kg7 {[%emt 0:00:44]} 73. Be6 {[%emt 0:00:09]} Bxe6 {[%emt 0:00:35]} 74. Rxe6 {[%emt 0:00:07]} Kf7 {[%emt 0:00:04]} 75. Ra6 {[%emt 0:00:15]} Nf6 {[%emt 0:00:14]} 76. Ke5 {[%emt 0:00:12]} Ng4+ {[%emt 0:00:10]} 77. Kf5 {[%emt 0:00:11]} Ne3+ {[%emt 0:00:10]} 78. Kg5 {[%emt 0:00:08]} Nd5 {[%emt 0:00:13]} 79. Ra7+ {[%emt 0:00:19]} Ne7 {[%emt 0:00:08]} 80. f5 {[%emt 0:00:43]} Kf8 {[%emt 0:00:10]} 81. Rxe7 {[%emt 0:00:34]} Kxe7 {[%emt 0:00:07]} 82. Kg6 {[%emt 0:00:05]} Kf8 {[%emt 0:00:06]} 83. Kf6 {[%emt 0:00:06]} 1-0

[Event "2nd Goa GM Open 2019"]
[Site "Goa"]
[Date "2019.06.23"]
[Round "8.20"]
[White "Turov, Maxim"]
[Black "Mitrabha, Guha"]
[Result "1/2-1/2"]
[ECO "E15"]
[WhiteElo "2579"]
[BlackElo "2341"]
[Annotator "ChessBase"]
[PlyCount "235"]
[EventDate "2019.06.17"]
[EventType "swiss"]
[EventCountry "IND"]
[SourceTitle "playchess.com"]
[Source "ChessBase"]
[SourceQuality "1"]
[TimeControl "5400+30"]

1. d4 {[%emt 0:00:00]} Nf6 {[%emt 0:00:00]} 2. c4 {[%emt 0:00:00]} e6 {[%emt 0:00:00]} 3. Nf3 {[%emt 0:00:00]} b6 {[%emt 0:00:00]} 4. g3 {[%emt 0:00:00]} Ba6 {[%emt 0:00:00]} 5. b3 {[%emt 0:00:02]} Bb7 {[%emt 0:00:00]} 6. Bg2 {[%emt 0:00:15]} Bb4+ {[%emt 0:00:00]} 7. Bd2 {[%emt 0:00:10]} a5 {[%emt 0:00:00]} 8. O-O {[%emt 0:00:44]} O-O {[%emt 0:00:04]} 9. a3 {[%emt 0:07:16]} Be7 {[%emt 0:02:47]} 10. Qc2 {[%emt 0:06:21]} Be4 {[%emt 0:05:04]} 11. Qb2 {[%emt 0:05:36]} Bb7 {[%emt 0:00:06]} 12. Nc3 {[%emt 0:05:21]} Ne4 {[%emt 0:00:30]} 13. Ne5 {[%emt 0:00:40]} Nxd2 {[%emt 0:01:22]} 14. Bxb7 {[%emt 0:00:13]} Ra7 {[%emt 0:00:04]} 15. Qxd2 {[%emt 0:00:10]} Rxb7 {[%emt 0:00:03]} 16. e4 {[%emt 0:01:37]} d6 {[%emt 0:00:51]} 17. Nd3 {[%emt 0:00:47]} Bf6 {[%emt 0:00:37]} 18. Ne1 {[%emt 0:07:05]} Nd7 {[%emt 0:02:19]} 19. Nc2 {[%emt 0:00:08]} g6 {[%emt 0:01:13]} 20. Rad1 {[%emt 0:02:37]} Qe7 {[%emt 0:01:56]} 21. f4 {[%emt 0:01:38]} Bg7 {[%emt 0:01:23]} 22. e5 {[%emt 0:01:52]} Rbb8 {[%emt 0:04:03]} 23. Nb5 {[%emt 0:01:31]} dxe5 {[%emt 0:01:07]} 24. dxe5 {[%emt 0:00:22]} Rfd8 {[%emt 0:01:57]} 25. Qe3 {[%emt 0:08:02]} Nc5 {[%emt 0:05:31]} 26. Ncd4 {[%emt 0:02:49]} Qe8 {[%emt 0:15:33]} 27. Nxc7 {[%emt 0:02:27]} Qd7 {[%emt 0:00:02]} 28. Ncb5 {[%emt 0:00:22]} Bf8 {[%emt 0:00:12]} 29. Qf3 {[%emt 0:00:56]} Qb7 {[%emt 0:00:41]} 30. Kg2 {[%emt 0:02:04]} Qxf3+ {[%emt 0:00:29]} 31. Kxf3 {[%emt 0:00:11]} Rd7 {[%emt 0:00:02]} 32. Nc6 {[%emt 0:02:40]} Rc8 {[%emt 0:00:35]} 33. Rxd7 {[%emt 0:05:29]} Nxd7 {[%emt 0:00:03]} 34. Rd1 {[%emt 0:06:40]} Nc5 {[%emt 0:01:35]} 35. Ncd4 {[%emt 0:04:19]} Rd8 {[%emt 0:00:10]} 36. Rd2 {[%emt 0:00:48]} h6 {[%emt 0:00:22]} 37. h4 {[%emt 0:01:22]} g5 {[%emt 0:00:19]} 38. h5 {[%emt 0:02:26]} f5 {[%emt 0:04:14]} 39. exf6 {[%emt 0:01:13]} gxf4 {[%emt 0:00:17]} 40. gxf4 {[%emt 0:01:49]} Kf7 {[%emt 0:00:15]} 41. Ke3 {[%emt 0:00:43]} Kxf6 {[%emt 0:01:49]} 42. Rg2 {[%emt 0:00:32]} Kf7 {[%emt 0:02:38]} 43. Na7 {[%emt 0:01:33]} Bg7 {[%emt 0:03:54]} 44. Nac6 {[%emt 0:00:25]} Rg8 {[%emt 0:00:17]} 45. Kf3 {[%emt 0:02:49]} Rc8 {[%emt 0:00:02]} 46. Ne5+ {[%emt 0:03:55]} Bxe5 {[%emt 0:00:03]} 47. fxe5 {[%emt 0:00:05]} Nd7 {[%emt 0:00:13]} 48. Kf4 {[%emt 0:05:31]} a4 {[%emt 0:00:06]} 49. Nb5 {[%emt 0:00:55]} Rf8 {[%emt 0:00:01]} 50. b4 {[%emt 0:01:24]} Ke7+ {[%emt 0:00:29]} 51. Ke4 {[%emt 0:00:06]} Rf5 {[%emt 0:00:10]} 52. Rg7+ {[%emt 0:00:26]} Kd8 {[%emt 0:00:03]} 53. Rg8+ {[%emt 0:02:07]} Ke7 {[%emt 0:00:02]} 54. Rg7+ {[%emt 0:00:14]} Kd8 {[%emt 0:00:02]} 55. Nd4 {[%emt 0:03:35]} Rxe5+ {[%emt 0:00:06]} 56. Kd3 {[%emt 0:00:13]} Kc8 {[%emt 0:00:27]} 57. Rg8+ {[%emt 0:01:31]} Kb7 {[%emt 0:00:18]} 58. Rg7 {[%emt 0:00:04]} Kc8 {[%emt 0:00:26]} 59. Re7 {[%emt 0:02:57]} Rxh5 {[%emt 0:00:44]} 60. Nxe6 {[%emt 0:00:10]} Rh4 {[%emt 0:02:10]} 61. c5 {[%emt 0:02:14]} bxc5 {[%emt 0:00:16]} 62. bxc5 {[%emt 0:00:07]} Ne5+ {[%emt 0:00:46]} 63. Ke3 {[%emt 0:00:17]} Nc4+ {[%emt 0:00:05]} 64. Ke2 {[%emt 0:00:36]} Ne5 {[%emt 0:02:41]} 65. c6 {[%emt 0:00:39]} Nxc6 {[%emt 0:00:39]} 66. Rc7+ {[%emt 0:00:05]} Kb8 {[%emt 0:00:01]} 67. Rxc6 {[%emt 0:00:07]} Rh3 {[%emt 0:00:08]} 68. Nc5 {[%emt 0:00:44]} Rxa3 {[%emt 0:00:07]} 69. Rxh6 {[%emt 0:00:11]} Rc3 {[%emt 0:00:09]} 70. Nxa4 {[%emt 0:00:18]} Rg3 {[%emt 0:00:11]} 71. Rh7 {[%emt 0:00:14]} Kc8 {[%emt 0:00:07]} 72. Nb6+ {[%emt 0:00:36]} Kd8 {[%emt 0:00:02]} 73. Nd5 {[%emt 0:00:07]} Rg5 {[%emt 0:00:33]} 74. Ne3 {[%emt 0:00:20]} Re5 {[%emt 0:00:05]} 75. Kd3 {[%emt 0:00:11]} Re7 {[%emt 0:00:04]} 76. Rh5 {[%emt 0:00:20]} Kd7 {[%emt 0:00:16]} 77. Kd4 {[%emt 0:00:04]} Rg7 {[%emt 0:00:28]} 78. Kd5 {[%emt 0:00:21]} Kc7 {[%emt 0:00:12]} 79. Nc4 {[%emt 0:00:10]} Rd7+ {[%emt 0:00:18]} 80. Kc5 {[%emt 0:00:08]} Rd1 {[%emt 0:00:12]} 81. Rh7+ {[%emt 0:00:27]} Rd7 {[%emt 0:00:08]} 82. Rh1 {[%emt 0:00:03]} Rg7 {[%emt 0:00:09]} 83. Ne5 {[%emt 0:01:18]} Rg2 {[%emt 0:00:29]} 84. Rh7+ {[%emt 0:00:21]} Kc8 {[%emt 0:00:04]} 85. Nc4 {[%emt 0:00:33]} Rc2 {[%emt 0:00:05]} 86. Kd5 {[%emt 0:00:09]} Kb8 {[%emt 0:00:35]} 87. Nd6 {[%emt 0:01:02]} Rc1 {[%emt 0:00:15]} 88. Rb7+ {[%emt 0:00:45]} Ka8 {[%emt 0:00:06]} 89. Rb2 {[%emt 0:00:34]} Rc7 {[%emt 0:07:43]} 90. Rb4 {[%emt 0:00:13]} Rc1 {[%emt 0:03:04]} 91. Nc4 {[%emt 0:00:11]} Ka7 {[%emt 0:00:14]} 92. Kc6 Rh1 93. Rb2 {[%emt 0:04:24]} Rc1 {[%emt 0:02:06]} 94. Rb7+ {[%emt 0:00:14]} Ka8 {[%emt 0:00:33]} 95. Rb4 {[%emt 0:00:05]} Ka7 {[%emt 0:01:15]} 96. Kc7 {[%emt 0:00:05]} Ka6 {[%emt 0:00:03]} 97. Rb6+ {[%emt 0:01:29]} Ka7 {[%emt 0:00:02]} 98. Rb7+ {[%emt 0:00:16]} Ka6 {[%emt 0:00:08]} 99. Rb4 {[%emt 0:00:07]} Rh1 {[%emt 0:00:11]} 100. Rb6+ {[%emt 0:01:34]} Ka7 {[%emt 0:00:02]} 101. Rb3 {[%emt 0:00:34]} Ka6 {[%emt 0:01:09]} 102. Kc6 {[%emt 0:00:55]} Rh6+ {[%emt 0:00:44]} 103. Kd5 {[%emt 0:00:18]} Rh5+ {[%emt 0:00:08]} 104. Ne5 {[%emt 0:00:04]} Ka5 {[%emt 0:00:15]} 105. Rb8 {[%emt 0:00:11]} Ka4 {[%emt 0:00:05]} 106. Kd4 {[%emt 0:00:12]} Rh4+ {[%emt 0:00:11]} 107. Kc3 {[%emt 0:00:10]} Rh3+ {[%emt 0:00:08]} 108. Nd3 {[%emt 0:00:11]} Ka5 {[%emt 0:00:09]} 109. Rb1 {[%emt 0:01:20]} Ka6 {[%emt 0:00:13]} 110. Rb3 {[%emt 0:01:04]} Ka5 {[%emt 0:00:17]} 111. Kd4 {[%emt 0:00:10]} Rh4+ {[%emt 0:00:05]} 112. Kd5 {[%emt 0:00:06]} Rh5+ {[%emt 0:00:03]} 113. Ne5 {[%emt 0:00:09]} Ka4 {[%emt 0:00:04]} 114. Rb8 {[%emt 0:00:14]} Ka3 {[%emt 0:00:05]} 115. Kd4 {[%emt 0:00:12]} Rh4+ {[%emt 0:00:24]} 116. Kc3 {[%emt 0:00:05]} Rh3+ {[%emt 0:00:12]} 117. Nd3 {[%emt 0:00:06]} Ka4 {[%emt 0:00:04]} 118. Kc4 {[%emt 0:02:44]} 1/2-1/2

[Event "2nd Goa GM Open 2019"]
[Site "Goa"]
[Date "2019.06.23"]
[Round "8.21"]
[White "Anuj Shrivatri"]
[Black "Venkatesh, M.R."]
[Result "1-0"]
[ECO "A40"]
[WhiteElo "2336"]
[BlackElo "2490"]
[Annotator "ChessBase"]
[PlyCount "69"]
[EventDate "2019.06.17"]
[EventType "swiss"]
[EventCountry "IND"]
[SourceTitle "playchess.com"]
[Source "ChessBase"]
[SourceQuality "1"]
[TimeControl "5400+30"]

1. d4 {[%emt 0:00:00]} Nc6 {[%emt 0:03:07]} 2. Nf3 {[%emt 0:00:37]} d5 {[%emt 0:00:13]} 3. c4 {[%emt 0:00:04]} Bg4 {[%emt 0:00:33]} 4. cxd5 {[%emt 0:00:15]} Bxf3 {[%emt 0:08:06]} 5. gxf3 {[%emt 0:01:29]} Qxd5 {[%emt 0:00:07]} 6. e3 {[%emt 0:00:03]} e5 {[%emt 0:00:08]} 7. Nc3 {[%emt 0:00:04]} Bb4 {[%emt 0:00:08]} 8. Bd2 {[%emt 0:00:05]} Bxc3 {[%emt 0:01:50]} 9. bxc3 {[%emt 0:00:02]} Qd6 {[%emt 0:01:33]} 10. Rb1 {[%emt 0:00:05]} b6 {[%emt 0:00:51]} 11. f4 {[%emt 0:00:37]} exf4 {[%emt 0:02:43]} 12. e4 {[%emt 0:00:07]} Nge7 {[%emt 0:01:09]} 13. Qf3 {[%emt 0:01:22]} Qa3 {[%emt 0:07:34]} 14. Qxf4 {[%emt 0:07:05]} O-O {[%emt 0:10:33]} 15. Bg2 {[%emt 0:15:19]} Qxa2 {[%emt 0:05:58]} 16. O-O {[%emt 0:03:15]} Ng6 {[%emt 0:00:06]} 17. Qe3 {[%emt 0:04:16]} Na5 {[%emt 0:10:15]} 18. Ra1 {[%emt 0:03:38]} Qc4 {[%emt 0:00:31]} 19. f4 {[%emt 0:03:56]} f5 {[%emt 0:17:03]} 20. e5 {[%emt 0:19:16]} c6 {[%emt 0:03:33]} 21. Be1 {[%emt 0:01:54]} Ne7 {[%emt 0:02:00]} 22. Rf3 {[%emt 0:01:39]} Qe6 {[%emt 0:01:21]} 23. Bh4 {[%emt 0:01:13]} Ng6 {[%emt 0:02:58]} 24. Rh3 {[%emt 0:05:08]} Rf7 {[%emt 0:07:58]} 25. Kh1 {[%emt 0:02:29]} Rc8 {[%emt 0:01:30]} 26. Qf3 {[%emt 0:01:01]} Rd7 {[%emt 0:02:47]} 27. Rg1 {[%emt 0:00:26]} Nb3 {[%emt 0:00:59]} 28. Bf2 {[%emt 0:01:41]} a5 {[%emt 0:01:38]} 29. Qh5 {[%emt 0:02:55]} Nf8 {[%emt 0:00:38]} 30. Bh4 {[%emt 0:00:26]} Kh8 {[%emt 0:01:19]} 31. Bf1 {[%emt 0:02:22]} c5 {[%emt 0:02:59]} 32. Bd3 {[%emt 0:03:54]} Rf7 {[%emt 0:01:21]} 33. Bf6 {[%emt 0:06:31]} gxf6 {[%emt 0:01:00]} 34. Rhg3 {[%emt 0:05:27]} Qc6+ {[%emt 0:00:21]} 35. R1g2 {[%emt 0:00:35]} 1-0